Workbook

Sheet BMF
A1: TAXA DE JUROS | L1: 2020-02-05
A2: BMF Bovespa - Taxa de Juros
A3: DI1 - Depósito Interfinanceiro de um dia
A4: Dvc | B4: DU | C4: Ultima | D4: Var | E4: Neg | F4: Cng | G4: Cab | H4: Mín | I4: Máx | J4: Abe | K4: Ajut | L4: Ajat
A5: 2020-03-02 | B5: 16 | C5: 4.2 | D5: -0.23753 | E5: 72 | F5: 627035 | G5: 1595378 | H5: 4.185 | I5: 4.203 | J5: 4.185 | K5: 4.197 | L5: 4.198
A6: 2020-04-01 | B6: 38 | C6: 4.18 | D6: -0.11947 | E6: 1627 | F6: 634495 | G6: 5521510 | H6: 4.166 | I6: 4.185 | J6: 4.173 | K6: 4.17 | L6: 4.174
A7: 2020-05-04 | B7: 58 | C7: 4.15 | D7: -0.24039 | E7: 37 | F7: 26295 | G7: 218825 | H7: 4.147 | I7: 4.15 | J7: 4.15 | K7: 4.15 | L7: 4.151
A8: 2020-06-01 | B8: 78 | C8: 4.16 | D8: -0.12005 | E8: 3 | F8: 270 | G8: 125280 | H8: 4.16 | I8: 4.18 | J8: 4.16 | K8: 4.143 | L8: 4.147
A9: 2020-07-01 | B9: 99 | C9: 4.155 | D9: 0 | E9: 1413 | F9: 364175 | G9: 5266707 | H9: 4.13 | I9: 4.16 | J9: 4.145 | K9: 4.14 | L9: 4.142
A10: 2020-08-03 | B10: 122 | C10: 4.155 | D10: 0.24126 | E10: 1 | F10: 200 | G10: 72720 | H10: 4.155 | I10: 4.155 | J10: 4.155 | K10: 4.143 | L10: 4.148
A11: 2020-09-01 | B11: 143 | C11: 4.15 | D11: 0.12063 | E11: 6 | F11: 550 | G11: 37370 | H11: 4.15 | I11: 4.15 | J11: 4.15 | K11: 4.145 | L11: 4.143
A12: 2020-10-01 | B12: 164 | C12: 4.21 | D12: 0.11891 | E12: 458 | F12: 66570 | G12: 695068 | H12: 4.185 | I12: 4.21 | J12: 4.195 | K12: 4.185 | L12: 4.194
A13: 2020-11-03 | B13: 185 | C13: 4.22 | D13: -0.23641 | E13: 6 | F13: 685 | G13: 37945 | H13: 4.21 | I13: 4.22 | J13: 4.21 | K13: 4.21 | L13: 4.219
A14: 2020-12-01 | B14: 205 | C14: 4.25 | D14: 0.3305 | E14: 35 | F14: 5075 | G14: 37095 | H14: 4.24 | I14: 4.25 | J14: 4.24 | K14: 4.228 | L14: 4.235
A15: 2021-01-04 | B15: 227 | C15: 4.32 | D15: 0.34843 | E15: 2752 | F15: 430415 | G15: 4303082 | H15: 4.275 | I15: 4.325 | J15: 4.285 | K15: 4.29 | L15: 4.295
A16: 2021-04-01 | B16: 288 | C16: 4.45 | D16: 0.45147 | E16: 165 | F16: 12590 | G16: 549347 | H16: 4.4 | I16: 4.45 | J16: 4.41 | K16: 4.42 | L16: 4.42
A17: 2021-07-01 | B17: 350 | C17: 4.61 | D17: 0.21739 | E17: 943 | F17: 36205 | G17: 902722 | H17: 4.55 | I17: 4.61 | J17: 4.58 | K17: 4.57 | L17: 4.581
A18: 2021-10-01 | B18: 415 | C18: 4.77 | D18: -0.41754 | E18: 62 | F18: 2145 | G18: 449222 | H18: 4.73 | I18: 4.77 | J18: 4.74 | K18: 4.73 | L18: 4.751
A19: 2022-01-03 | B19: 478 | C19: 4.92 | D19: 0 | E19: 3269 | F19: 272275 | G19: 1392762 | H19: 4.87 | I19: 4.92 | J19: 4.9 | K19: 4.89 | L19: 4.911
A20: 2022-04-01 | B20: 540 | C20: 5.07 | D20: 0 | E20: 99 | F20: 5650 | G20: 146310 | H20: 5.04 | I20: 5.07 | J20: 5.04 | K20: 5.05 | L20: 5.071
A21: 2022-07-01 | B21: 602 | C21: 5.2 | D21: -0.19194 | E21: 630 | F21: 22565 | G21: 405582 | H21: 5.16 | I21: 5.21 | J21: 5.2 | K21: 5.18 | L21: 5.201
A22: 2022-10-03 | B22: 667 | C22: 5.32 | D22: -0.56075 | E22: 3 | F22: 130 | G22: 49715 | H22: 5.3 | I22: 5.32 | J22: 5.3 | K22: 5.325 | L22: 5.351
A23: 2023-01-02 | B23: 729 | C23: 5.44 | D23: -0.18349 | E23: 10663 | F23: 318205 | G23: 1683036 | H23: 5.4 | I23: 5.46 | J23: 5.45 | K23: 5.42 | L23: 5.451
A24: 2023-04-03 | B24: 792 | C24: 5.53 | D24: -0.71813 | E24: 18 | F24: 315 | G24: 21250 | H24: 5.51 | I24: 5.55 | J24: 5.53 | K24: 5.525 | L24: 5.571
A25: 2023-07-03 | B25: 853 | C25: 5.66 | D25: -0.35211 | E25: 499 | F25: 25755 | G25: 790821 | H25: 5.62 | I25: 5.69 | J25: 5.68 | K25: 5.64 | L25: 5.682
A26: 2023-10-02 | B26: 917 | C26: 5.74 | D26: -0.69204 | E26: 13 | F26: 95 | G26: 17645 | H26: 5.72 | I26: 5.75 | J26: 5.75 | K26: 5.74 | L26: 5.782
A27: 2024-01-02 | B27: 978 | C27: 5.83 | D27: -0.51195 | E27: 1112 | F27: 46785 | G27: 406407 | H27: 5.8 | I27: 5.86 | J27: 5.85 | K27: 5.82 | L27: 5.862

Sheet LTN_CASADA
A1: I | B1: Calculo FLUXO E PU LTN | D1: =K40 -> 05/Fev/2020 | I1: II
C2: ESPECULAÇÃO | K2: ESPECULAÇÃO
C3: no resgate | E3: VN | H3: CDI médio | K3: no secundário | M3: VN | P3: CDI médio
E4: 1000 | H4: 5.4 | I4: %a.a. | M4: =E4 -> 1000 | P4: 6 | Q4: %a.a.
B5: BM&F | C5: =VLOOKUP(E10,L45:O55,3,FALSE) -> 5.66 | J5: BM&F | K5: 5.8
B6: Prêmio | C6: =VLOOKUP(E10,L45:O55,4,FALSE) -> 1.38 | G6: Res. Resgate | J6: Prêmio | K6: =C6 -> 1.38 | O6: Vd LTN
B7: Taxa | C7: =C5+C6/100 -> 5.6738 | D7: %a.a. | G7: LTN | H7: =C14*E4 -> 1000000 | J7: Taxa | K7: =K5+K6/100 -> 5.8138 | L7: %a.a. | O7: LTN | P7: =K16 -> 988850.173
G8: Fin | H8: =(1+H4/100)^(E10/252)*C16 -> 991256.7619 | O8: Fin | P8: =(1+P4/100)^((E10-M10)/252)*C16 -> 998872.0208
E9: Prazo | M9: Prazo
E10: 853 | F10: du | G10: Res. LTN. | H10: =H7-H8 -> 8743.238055 | M10: 50 | N10: du | O10: Res. LTN. | P10: =P7-P8 -> -10021.84776
B12: PU = | C12: =ROUND(E4/(1+C7/100)^(E10/252),6) -> 829.607191 | H12: Over Suportável | J12: PU = | K12: =ROUND(M4/(1+K7/100)^(M10/252),6) -> 988.850173 | P12: Over Suportável
H13: 5.673799988 | I13: %a.a. | P13: 5.665088808 | Q13: %a.a.
B14: Estoque | C14: 1000 | H14: =H7-(1+H13/100)^(E10/252)*C16 -> -3.57395038e-08 | J14: Estoque | K14: =C14 -> 1000 | O14: Atingir Meta = 0 | P14: =P7-(1+P13/100)^((E10-M10)/252)*C16 -> 0
B16: Fin | C16: =C12*C14 -> 829607.191 | J16: Fin | K16: =K12*K14 -> 988850.173
A19: III | B19: BM&F | I19: IIII
C20: ARBITRAGEM | K20: Hedge
C21: no resgate | E21: VN | H21: CDI médio | K21: secundário | M21: VN | P21: CDI médio
E22: 100000 | H22: =H4 -> 5.4 | I22: %a.a. | M22: 100000 | P22: =P4 -> 6 | Q22: %a.a.
G24: Res. Resgate | O24: Liq. Futuro
B25: Taxa | C25: =C5 -> 5.66 | D25: %a.a. | G25: Pre | H25: =E22*C34 -> 999558.0476 | J25: BM&F | K25: =K5 -> 5.8 | L25: %a.a. | O25: Pre | P25: =K32 -> 988438.764
G26: Pós | H26: =(1+H22/100)^(E28/252)*C32 -> 991256.7619 | O26: Pós | P26: =(1+P22/100)^((E28-M28)/252)*C32 -> 998872.0208
E27: Prazo | M27: Prazo
E28: =E10 -> 853 | F28: du | G28: Res. BM&F | H28: =-(H25-H26) -> -8301.285657 | M28: =M10 -> 50 | N28: du | O28: Res. BM&F | P28: =-(P25-P26) -> 10433.2568
B30: PU = | C30: =ROUND(E22/(1+C25/100)^(E28/252),2) -> 82997.4 | J30: PU = | K30: =ROUND(M22/(1+K25/100)^(M28/252),2) -> 98887.58
B32: Fin. | C32: =C16 -> 829607.191 | G32: Arb. | H32: =H10+H28 -> 441.9523985 | J32: Fin. | K32: =K30*K34 -> 988438.764 | O32: Hedge. | P32: =P10+P28 -> 411.4090316
B34: Qde. Cts. | C34: =C32/C30 -> 9.995580476 | J34: Qde. Cts. | K34: =C34 -> 9.995580476 | O34: BreakEven ~ | P34: =C6*E10/M10 -> 23.5428
A40: Títulos Públicos Federais | K40: 05/Fev/2020
A42: Papel PREFIXADO | C42: LTN - Taxa (% a.a.)/252 | L42: BM&F
A43: Código SELIC | B43: Data Base/Emissão | C43: Data de Vencimento | D43: Tx. Compra | E43: Tx. Venda | F43: Tx. Indicativas | G43: PU | H43: Intervalo Indicativo
H44: Mínimo (D0) | I44: Máximo (D0) | J44: Mínimo (D+1) | K44: Máximo (D+1) | L44: DU | M44: DC | N44: BMF | O44: Spread | P44: ltn
A45: 100000 | B45: 2018-01-05 | C45: 2020-04-01 | D45: 4.1806 | E45: 4.1685 | F45: 4.175 | G45: 993.85122 | H45: 4.0909 | I45: 4.282 | J45: 4.0772 | K45: 4.2683 | L45: =NETWORKDAYS($K$40,C45,Feriado)-1 -> 38 | M45: =C45-$K$40 -> 56 | N45: =VLOOKUP(L45,BMF!$B$4:$N$27,2,FALSE) -> 4.18 | O45: =(F45-N45)*100 -> -0.5 | P45: =D45 -> 4.1806
A46: 100000 | B46: 2016-07-08 | C46: 2020-07-01 | D46: 4.1545 | E46: 4.1432 | F46: 4.1494 | G46: 984.15479 | H46: 4.0393 | I46: 4.2863 | J46: 4.0308 | K46: 4.2759 | L46: 99 | M46: =C46-$K$40 -> 147 | N46: =VLOOKUP(L46,BMF!$B$4:$N$27,2,FALSE) -> 4.155 | O46: -0.56 | P46: =D46 -> 4.1545
A47: 100000 | B47: 2018-07-06 | C47: 2020-10-01 | D47: 4.1975 | E47: 4.1875 | F47: 4.1931 | G47: 973.622313 | H47: 4.0285 | I47: 4.4168 | J47: 4.0176 | K47: 4.4039 | L47: 164 | M47: 239 | N47: =VLOOKUP(L47,BMF!$B$4:$N$27,2,FALSE) -> 4.21 | O47: -1.69 | P47: 4.1975
A48: 100000 | B48: 2019-01-04 | C48: 2021-04-01 | D48: 4.4367 | E48: 4.4246 | F48: 4.4319 | G48: 951.648059 | H48: 4.1742 | I48: 4.7319 | J48: 4.174 | K48: 4.7307 | L48: 288 | M48: 421 | N48: =VLOOKUP(L48,BMF!$B$4:$N$27,2,FALSE) -> 4.45 | O48: -1.81 | P48: 4.4367
A49: 100000 | B49: 2017-07-07 | C49: 2021-07-01 | D49: 4.5881 | E49: 4.5771 | F49: 4.5833 | G49: 939.656171 | H49: 4.3058 | I49: 4.9173 | J49: 4.2947 | K49: 4.9054 | L49: 350 | M49: 512 | N49: =VLOOKUP(L49,BMF!$B$4:$N$27,2,FALSE) -> 4.61 | O49: -2.67 | P49: 4.5881
A50: 100000 | B50: 2019-07-05 | C50: 2021-10-01 | D50: 4.7565 | E50: 4.7456 | F50: 4.75 | G50: 926.424067 | H50: 4.4565 | I50: 5.1084 | J50: 4.4369 | K50: 5.0882 | L50: 415 | M50: 604 | N50: =VLOOKUP(L50,BMF!$B$4:$N$27,2,FALSE) -> 4.77 | O50: -2 | P50: 4.7565
A51: 100000 | B51: 2018-01-05 | C51: 2022-01-01 | D51: 4.9145 | E51: 4.9042 | F51: 4.9088 | G51: 913.11068 | H51: 4.5988 | I51: 5.2784 | J51: 4.5778 | K51: 5.2571 | L51: =NETWORKDAYS($K$40,C51,Feriado) -> 478 | M51: 696 | N51: =VLOOKUP(L51,BMF!$B$4:$N$27,2,FALSE) -> 4.92 | O51: -1.12 | P51: 4.9145
A52: 100000 | B52: 2020-01-03 | C52: 2022-04-01 | D52: 5.0764 | E52: 5.0672 | F52: 5.0709 | G52: 899.427524 | H52: 4.7458 | I52: 5.4448 | J52: 4.7269 | K52: 5.4257 | L52: 540 | M52: 786 | N52: =VLOOKUP(L52,BMF!$B$4:$N$27,2,FALSE) -> 5.07 | O52: 0.09 | P52: 5.0764
A53: 100000 | B53: 2018-06-21 | C53: 2022-07-01 | D53: 5.2112 | E53: 5.1994 | F53: 5.205 | G53: 885.844585 | H53: 4.8723 | I53: 5.5802 | J53: 4.8516 | K53: 5.5594 | L53: 602 | M53: 877 | N53: =VLOOKUP(L53,BMF!$B$4:$N$27,2,FALSE) -> 5.2 | O53: 0.5 | P53: 5.2112
A54: 100000 | B54: 2019-04-05 | C54: 2023-07-01 | D54: 5.6797 | E54: 5.6687 | F54: 5.6738 | G54: 829.60719 | H54: 5.3459 | I54: 6.0473 | J54: 5.3054 | K54: 6.007 | L54: =NETWORKDAYS($K$40,C54,Feriado) -> 853 | M54: 1242 | N54: =VLOOKUP(L54,BMF!$B$4:$N$27,2,FALSE) -> 5.66 | O54: 1.38 | P54: 5.6797
A55: 100000 | B55: 2020-01-03 | C55: 2024-01-01 | D55: 5.864 | E55: 5.8541 | F55: 5.8591 | G55: 801.735369 | H55: 5.5314 | I55: 6.2449 | J55: 5.4914 | K55: 6.2048 | L55: =NETWORKDAYS($K$40,C55,Feriado) -> 978 | M55: 1426 | N55: =VLOOKUP(L55,BMF!$B$4:$N$27,2,FALSE) -> 5.83 | O55: 2.91 | P55: 5.864

Sheet EX_LTN
A1: =BMF!L1 -> 2020-02-05
B2: Carteira Ativa A | F2: Carteira Passiva B
A3: DU | B3: Taxa | C3: QTDE | D3: VF | E3: VPL | F3: VF | G3: PU | H3: Fin | I3: Qtde | J3: Taxa | K3: Qtde teórica
E4: =SUM(E5:E16) -> 929734.6604 | H4: =SUM(H5:H16) -> -929734.6604
A5: =LTN_CASADA!L45 -> 38 | B5: =LTN_CASADA!F45 -> 4.175 | C5: 100 | D5: 1000 | E5: =D5/((1+$B5/100)^($A5/252))*C5 -> 99385.1221 | F5: =-D5*100 -> -100000 | G5: =F5/((1+$J5/100)^($A5/252)) -> -99384.31651 | H5: =-G5*I5 -> -99385.1221 | I5: =E5/G5*K5 -> -1.000008106 | J5: =VLOOKUP(A5,LTN_CASADA!L45:P55,5,FALSE) -> 4.1806 | K5: =K20 -> 1
A6: =LTN_CASADA!L46 -> 99 | B6: =LTN_CASADA!F46 -> 4.1494 | C6: 100 | D6: 1000 | E6: =D6/((1+$B6/100)^($A6/252))*C6 -> 98415.47906 | F6: =-D6*100 -> -100000 | G6: =F6/((1+$J6/100)^($A6/252)) -> -98413.58586 | H6: =-G6*I6 -> -98415.47906 | I6: -1.000019237 | J6: =VLOOKUP(A6,LTN_CASADA!L46:P56,5,FALSE) -> 4.1545 | K6: =K20 -> 1
A7: =LTN_CASADA!L47 -> 164 | B7: =LTN_CASADA!F47 -> 4.1931 | C7: 100 | D7: 1000 | E7: 97362.23132 | F7: -100000 | G7: -97359.55565 | H7: -97362.23132 | I7: -1.000027482 | J7: =VLOOKUP(A7,LTN_CASADA!L47:P57,5,FALSE) -> 4.1975 | K7: =K6 -> 1
A8: =LTN_CASADA!L48 -> 288 | B8: =LTN_CASADA!F48 -> 4.4319 | C8: 100 | D8: 1000 | E8: 95164.80593 | F8: -100000 | G8: -95159.80726 | H8: -95164.80593 | I8: -1.000052529 | J8: =VLOOKUP(A8,LTN_CASADA!L48:P58,5,FALSE) -> 4.4367 | K8: =K7 -> 1
A9: =LTN_CASADA!L49 -> 350 | B9: =LTN_CASADA!F49 -> 4.5833 | C9: 100 | D9: 1000 | E9: 93965.61712 | F9: -100000 | G9: -93959.62761 | H9: -93965.61712 | I9: -1.000063746 | J9: =VLOOKUP(A9,LTN_CASADA!L49:P59,5,FALSE) -> 4.5881 | K9: 1
A10: =LTN_CASADA!L50 -> 415 | B10: =LTN_CASADA!F50 -> 4.75 | C10: 100 | D10: 1000 | E10: 92642.40671 | F10: -100000 | G10: -92632.94039 | H10: -92642.40671 | I10: =E10/G10*K10 -> -1.000102192 | J10: =VLOOKUP(A10,LTN_CASADA!L50:P60,5,FALSE) -> 4.7565 | K10: 1
A11: =LTN_CASADA!L51 -> 478 | B11: =LTN_CASADA!F51 -> 4.9088 | C11: 100 | D11: 1000 | E11: 91311.06807 | F11: -100000 | G11: -91301.65829 | H11: -91311.06807 | I11: -1.000103063 | J11: =VLOOKUP(A11,LTN_CASADA!L51:P61,5,FALSE) -> 4.9145 | K11: 1
A12: =LTN_CASADA!L52 -> 540 | B12: =LTN_CASADA!F52 -> 5.0709 | C12: 100 | D12: 1000 | E12: 89942.75242 | F12: -100000 | G12: -89932.66445 | H12: -89942.75242 | I12: -1.000112173 | J12: =VLOOKUP(A12,LTN_CASADA!L52:P62,5,FALSE) -> 5.0764 | K12: 1
A13: =LTN_CASADA!L53 -> 602 | B13: =LTN_CASADA!F53 -> 5.205 | C13: 100 | D13: 1000 | E13: 88584.45855 | F13: -100000 | G13: -88571.98858 | H13: -88584.45855 | I13: -1.000140789 | J13: =VLOOKUP(A13,LTN_CASADA!L53:P63,5,FALSE) -> 5.2112 | K13: 1
A14: =LTN_CASADA!L54 -> 853 | B14: =LTN_CASADA!F54 -> 5.6738 | C14: 100 | D14: 1000 | E14: 82960.71907 | F14: -100000 | G14: -82945.04245 | H14: -82960.71907 | I14: -1.000189 | J14: =VLOOKUP(A14,LTN_CASADA!L54:P64,5,FALSE) -> 5.6797 | K14: 1
A17: Duration | E17: =SUMPRODUCT(A5:A16,E5:E16)/E4 -> 370.5770376 | G17: =SUMPRODUCT($A$5:$A$16,H5:H16)/H4 -> 370.5770376
A18: Modify Duration | C18: tx 0 equiv. | D18: ='DIV 01'!B7 -> 0.04986300272 | E18: =-E17/(1+D18/100) -> -370.3923488 | G18: =-G17/(1+D18/100) -> -370.3923488
A20: Valor de B para imunizar A | D20: Ft. Ajuste:MDUR | E20: =E17/G17 -> 1 | F20: =H4*E20 -> -929734.6604 | J20: =H4+E4 -> 0 | K20: 1
J21: Atingir meta = 0
A22: Deslocamento paralelo = Variações iguais para todos os vértices
A23: du
A24: 0 | B24: Incremento | C24: 0.01
B25: Carteira Ativa A | F25: Carteira Passiva B
A26: DU | B26: Taxa | C26: QTDE | D26: VF | E26: VPL | F26: VF | G26: VPL | H26: Qtde | I26: Taxa
E27: =SUM(E28:E39) -> 929604.4475 | G27: =SUM(G28:G39) -> -929604.4545
A28: =A5-$A$24 -> 38 | B28: =B5+$C$24 -> 4.185 | C28: =C5 -> 100 | D28: 1000 | E28: =D28/((1+$B28/100)^($A28/252))*C28 -> 99383.68358 | F28: =F5 -> -100000 | G28: =-F28/((1+$I28/100)^($A28/252))*H28 -> -99383.68365 | H28: =I5*$E$20 -> -1.000008106 | I28: =J5+$C$24 -> 4.1906
A29: =A6-$A$24 -> 99 | B29: 4.1594 | C29: 100 | D29: 1000 | E29: =D29/((1+$B29/100)^($A29/252))*C29 -> 98411.76703 | F29: =F6 -> -100000 | G29: =-F29/((1+$I29/100)^($A29/252))*H29 -> -98411.76721 | H29: -1.000019237 | I29: 4.1645
A30: 164 | B30: 4.2031 | C30: 100 | D30: 1000 | E30: 97356.15053 | F30: =F7 -> -100000 | G30: -97356.15078 | H30: -1.000027482 | I30: 4.2075
A31: 288 | B31: 4.4419 | C31: 100 | D31: 1000 | E31: 95154.39258 | F31: -100000 | G31: -95154.39306 | H31: -1.000052529 | I31: 4.4467
A32: 350 | B32: 4.5933 | C32: 100 | D32: 1000 | E32: 93953.13971 | F32: -100000 | G32: -93953.14028 | H32: -1.000063746 | I32: 4.5981
A33: 415 | B33: 4.76 | C33: 100 | D33: 1000 | E33: 92627.84379 | F33: -100000 | G33: -92627.84469 | H33: -1.000102192 | I33: 4.7665
A34: 478 | B34: 4.9188 | C34: 100 | D34: 1000 | E34: 91294.56066 | F34: -100000 | G34: -91294.56156 | H34: -1.000103063 | I34: 4.9245
A35: 540 | B35: 5.0809 | C35: 100 | D35: 1000 | E35: 89924.41188 | F35: -100000 | G35: -89924.41284 | H35: -1.000112173 | I35: 5.0864
A36: 602 | B36: 5.215 | C36: 100 | D36: 1000 | E36: 88564.34692 | F36: -100000 | G36: -88564.34811 | H36: -1.000140789 | I36: 5.2212
A37: 853 | B37: 5.6838 | C37: 100 | D37: 1000 | E37: 82934.15078 | F37: -100000 | G37: -82934.15226 | H37: -1.000189 | I37: 5.6897
A40: Duration | E40: =SUMPRODUCT(A28:A39,E28:E39)/E27 -> 370.5564486 | G40: =SUMPRODUCT($A$5:$A$16,G28:G39)/G27 -> 370.5564497
A41: Modify Duration | C41: tx 0 equiv. | D41: =Cubic_Spline(A28:A37,B28:B37,E40)/100 -> 0.04645893892 | E41: =-E40/(1+D41/100) -> -370.3843719 | G41: =-G40/(1+D41/100) -> -370.3843731
A43: Variação ocorrida em A | E43: =E27-E4 -> -130.2128989 | G43: Imunização
A44: Variação ocorrida em B | E44: =G27-F20 -> 130.205904 | G44: =E43+E44 -> -0.006994976546
A47: Deslocamentos diferentes nos vértices:
B49: Carteira Ativa A | F49: Carteira Passiva B | K49: INCREMENTO
A50: DU | B50: Taxa | C50: QTDE | D50: VF | E50: VPL | F50: VF | G50: VPL | H50: Qtde | I50: Taxa
E51: =SUM(E52:E63) -> 929604.4475 | G51: =SUM(G52:G63) -> -929604.4545
A52: =A28 -> 38 | B52: =B5+K52 -> 4.185 | C52: =C28 -> 100 | D52: =D28 -> 1000 | E52: =D52/((1+$B52/100)^($A52/252))*C52 -> 99383.68358 | F52: =F28 -> -100000 | G52: =-F52/((1+$I52/100)^($A52/252))*H52 -> -99383.68365 | H52: =H28 -> -1.000008106 | I52: =J5+K52 -> 4.1906 | K52: 0.01
A53: =A29 -> 99 | B53: =B6+K53 -> 4.1594 | C53: =C29 -> 100 | D53: =D29 -> 1000 | E53: =D53/((1+$B53/100)^($A53/252))*C53 -> 98411.76703 | F53: =F29 -> -100000 | G53: =-F53/((1+$I53/100)^($A53/252))*H53 -> -98411.76721 | H53: =H29 -> -1.000019237 | I53: 4.1645 | K53: 0.01
A54: 164 | B54: 4.2031 | C54: 100 | D54: 1000 | E54: 97356.15053 | F54: =F30 -> -100000 | G54: -97356.15078 | H54: =H30 -> -1.000027482 | I54: 4.2075 | K54: 0.01
A55: 288 | B55: 4.4419 | C55: 100 | D55: 1000 | E55: 95154.39258 | F55: -100000 | G55: -95154.39306 | H55: -1.000052529 | I55: 4.4467 | K55: 0.01
A56: 350 | B56: 4.5933 | C56: 100 | D56: 1000 | E56: 93953.13971 | F56: -100000 | G56: -93953.14028 | H56: -1.000063746 | I56: 4.5981 | K56: 0.01
A57: 415 | B57: 4.76 | C57: 100 | D57: 1000 | E57: 92627.84379 | F57: -100000 | G57: -92627.84469 | H57: -1.000102192 | I57: 4.7665 | K57: 0.01
A58: 478 | B58: 4.9188 | C58: 100 | D58: 1000 | E58: 91294.56066 | F58: -100000 | G58: -91294.56156 | H58: -1.000103063 | I58: 4.9245 | K58: 0.01
A59: 540 | B59: 5.0809 | C59: 100 | D59: 1000 | E59: 89924.41188 | F59: -100000 | G59: -89924.41284 | H59: -1.000112173 | I59: 5.0864 | K59: 0.01
A60: 602 | B60: 5.215 | C60: 100 | D60: 1000 | E60: 88564.34692 | F60: -100000 | G60: -88564.34811 | H60: -1.000140789 | I60: 5.2212 | K60: 0.01
A61: 853 | B61: 5.6838 | C61: 100 | D61: 1000 | E61: 82934.15078 | F61: -100000 | G61: -82934.15226 | H61: -1.000189 | I61: 5.6897 | K61: 0.01
K62: 0.01
A64: Duration | E64: =SUMPRODUCT(A52:A63,E52:E63)/E51 -> 370.5564486 | G64: =SUMPRODUCT($A$5:$A$16,G52:G63)/G51 -> 370.5564497
A65: Modify Duration | C65: tx média | D65: =D41 -> 0.04645893892 | E65: =-E64/(1+D65/100) -> -370.3843719 | G65: =-G64/(1+D65/100) -> -370.3843731
A67: Variação ocorrida em A | E67: =E51-E4 -> -130.2128989 | G67: Imunização
A68: Variação ocorrida em B | E68: =G51-F20 -> 130.205904 | G68: =E67+E68 -> -0.006994976546

Sheet DIV 01
A1: Data | B1: =BMF!L1 -> 2020-02-05 | C1: 38 | D1: 99 | E1: 164 | F1: 288 | G1: 350 | H1: 415 | I1: 478 | J1: 540 | K1: 602 | L1: 853
A2: Preço Anbima | B2: =SUMPRODUCT(C2:L2,C5:L5) -> 929734.6599 | C2: 993.85122 | D2: 984.15479 | E2: 973.622313 | F2: 951.648059 | G2: 939.656171 | H2: 926.424067 | I2: 913.11068 | J2: 899.427524 | K2: 885.844585 | L2: 829.60719
A3: Prazo em dias úteis | B3: 0 | C3: =C1+$B$3 -> 38 | D3: =D1+$B$3 -> 99 | E3: 164 | F3: 288 | G3: 350 | H3: 415 | I3: 478 | J3: 540 | K3: 602 | L3: 853
A4: Valor Nominal - R$ | C4: =$M$4*C5 -> 100000 | D4: 100000 | E4: 100000 | F4: 100000 | G4: 100000 | H4: 100000 | I4: 100000 | J4: 100000 | K4: 100000 | L4: 100000 | M4: 1000
A5: Carteira | C5: 100 | D5: 100 | E5: 100 | F5: 100 | G5: 100 | H5: 100 | I5: 100 | J5: 100 | K5: 100 | L5: 100
A7: Taxa Equivalente | B7: 0.04986300272 | C7: =B8-B2 -> -6.053596735e-08 | D7: Atingir meta para valor = 0
A8: VPL taxa única | B8: =SUM(C8:L8) -> 929734.6599 | C8: =C4/(1+$B$7)^(C3/252) -> 99268.92831 | D8: 98106.52541 | E8: 96882.87492 | F8: 94590.69605 | G8: 93465.02426 | H8: 92299.26569 | I8: 91183.25431 | J8: 90098.13262 | K8: 89025.92435 | L8: 84814.03397
A10: Duration | B10: =SUMPRODUCT(C10:L10,C36:L36)/SUM(C36:L36) -> 1.475976651 | C10: =C3/252 -> 0.1507936508 | D10: 0.3928571429 | E10: 0.6507936508 | F10: 1.142857143 | G10: 1.388888889 | H10: 1.646825397 | I10: 1.896825397 | J10: 2.142857143 | K10: 2.388888889 | L10: 3.384920635 | M10: =B10*252 -> 371.9461159
A11: Modify Duration | B11: =B10/(1+B7) -> 1.405875478
A15: t^2 + t | C15: =C10^2+C10 -> 0.1735323759 | D15: 0.5471938776 | E15: 1.074326027 | F15: 2.448979592 | G15: 3.317901235 | H15: 4.358859284 | I15: 5.494771983 | J15: 6.734693878 | K15: 8.095679012 | L15: 14.84260834
A16: (t^2 + t) * VPL(t) | B16: =SUM(C16:K16) -> 2947611.212 | C16: =C15*C36 -> 17226.37298 | D16: 53683.29005 | E16: 104083.7941 | F16: 231650.6842 | G16: 310107.7194 | H16: 402319.5112 | I16: 501031.1911 | J16: 606783.3421 | K16: 720725.3073 | L16: 1258861.488
A17: Convexity | B17: =(1/B8)*(1/((1+B7)^2))*B16 -> 2.876377716
A20: DIV01 - Duration para | B20: 0.0001 | C20: =-B8*B11/10000 -> -130.7091159
A21: DIV01 - Duration para | B21: 0.05 | C21: =C68 -> -65354.55796
A24: Fluxos Futuros | C24: C1 | D24: C2 | E24: C3 | F24: C4 | G24: C5 | H24: C6 | I24: C7 | J24: C8 | K24: C9 | L24: C10
A27: Variações em i | B27: VPL-Totais | C27: VP(1) | D27: VP(2) | E27: VP(3) | F27: VP(4) | G27: VP(5) | H27: VP(6) | I27: VP(7) | J27: VP(8) | K27: VP(9) | L27: VP(10)
A28: =A49 -> -0.3501369973 | B28: =SUM(C28:L28) -> 2094921.213 | C28: =C$4/((1+$A49)^(C$3/252)) -> 106714.9542 | D28: 118449.788 | E28: 132377.5612 | F28: 163650.7229 | G28: 181957.3924 | H28: 203352.6294 | I28: 226487.5527 | J28: 251823.4185 | K28: 279993.4626 | L28: 430113.7317
A29: =A50 -> -0.3001369973 | B29: =SUM(C29:L29) -> 1822071.504 | C29: =C$4/((1+$A50)^(C$3/252)) -> 105528.8123 | D29: 115050.2948 | E29: 126143.3999 | F29: 150358.4912 | G29: 164157.1005 | H29: 179985.0649 | I29: 196781.0212 | J29: 214839.891 | K29: 234556.0486 | L29: 334671.3792
A30: -0.2501369973 | B30: 1607588.471 | C30: =C$4/((1+$A51)^(C$3/252)) -> 104436.4093 | D30: 111973.2395 | E30: 120603.7935 | F30: 138956.1581 | G30: 149154.4493 | H30: 160650.8169 | I30: 172638.4216 | J30: 185308.7265 | K30: 198908.9324 | L30: 264957.5238
A31: -0.2001369973 | B31: 1435676.145 | C31: =C$4/((1+$A52)^(C$3/252)) -> 103424.7859 | D31: 109169.4219 | E31: 115642.328 | F31: 129074.1589 | G31: 136364.2546 | H31: 144449.6048 | I31: 152743.4007 | J31: 161370.3328 | K31: 170484.5131 | L31: 212953.3448
A32: -0.1501369973 | B32: 1295548.017 | C32: =C$4/((1+$A53)^(C$3/252)) -> 102483.4492 | D32: 106599.6503 | E32: 111167.8668 | F32: 120432.607 | G32: 125350.6226 | H32: 130722.3923 | I32: 136148.4672 | J32: 141708.2596 | K32: 147495.0929 | L32: 173439.6095
A33: -0.1001369973 | B33: 1179639.331 | C33: =C$4/((1+$A54)^(C$3/252)) -> 101603.7901 | D33: 104232.2541 | E33: 107107.9508 | F33: 112815.7754 | G33: 115782.7589 | H33: 118977.126 | I33: 122157.2859 | J33: 125369.9452 | K33: 128667.0955 | L33: 142925.349
A34: -0.05013699728 | B34: 1082519.362 | C34: =C$4/((1+$A55)^(C$3/252)) -> 100778.6609 | D34: 102041.315 | E34: 103404.1806 | F34: 106054.7971 | G34: 107405.4768 | H34: 108839.9863 | I34: 110248.6386 | J34: 111652.7297 | K34: 113074.7029 | L34: 119018.8737
A35: =A56 -> -0.0001369972754 | B35: 1000208.095 | C35: =C$4/((1+$A56)^(C$3/252)) -> 100002.066 | D35: 100005.3825 | E35: 100008.9167 | F35: 100015.6591 | G35: 100019.0305 | H35: 100022.5652 | I35: 100025.9911 | J35: 100029.3629 | K35: 100032.7347 | L35: 100046.3864
A36: =A57 -> 0.04986300272 | B36: 929734.6599 | C36: =C$4/((1+$A57)^(C$3/252)) -> 99268.92831 | D36: 98106.52541 | E36: 96882.87492 | F36: 94590.69605 | G36: 93465.02426 | H36: 92299.26569 | I36: 91183.25431 | J36: 90098.13262 | K36: 89025.92435 | L36: 84814.03397
A37: 0.09986300272 | B37: 868844.7304 | C37: =C$4/((1+$A58)^(C$3/252)) -> 98574.91303 | D37: 96329.61805 | E37: 93993.3451 | F37: 89692.45124 | G37: 87616.3762 | H37: 85491.42467 | I37: 83481.05061 | J37: 81548.74836 | K37: 79661.17233 | L37: 72455.63083
A38: 0.1498630027 | B38: 815802.2357 | C38: =C$4/((1+$A59)^(C$3/252)) -> 97916.29072 | D38: 94661.79735 | E38: 91312.85102 | F38: 85249.17224 | G38: 82370.04528 | H38: 79455.95672 | I38: 76729.9537 | J38: 74138.54697 | K38: 71634.66003 | L38: 62332.96171
A39: 0.1998630027 | B39: 769252.231 | C39: =C$4/((1+$A60)^(C$3/252)) -> 97289.83072 | D39: 93092.04296 | E39: 88818.12825 | F39: 81201.45564 | G39: 77641.67813 | H39: 74077.09946 | I39: 70778.45093 | J39: 67675.60584 | K39: 64708.78588 | L39: 53969.15317
A40: 0.2498630027 | B40: 728124.3149 | C40: =C$4/((1+$A61)^(C$3/252)) -> 96692.71686 | D40: 91610.84928 | E40: 86489.33478 | F40: 77499.714 | G40: 73361.61295 | H40: 69260.32399 | I40: 65504.16511 | J40: 62006.56698 | K40: 58695.72328 | L40: 47003.30765
A41: 0.2998630027 | B41: 691563.4629 | C41: =C$4/((1+$A62)^(C$3/252)) -> 96122.48009 | D41: 90209.96639 | E41: 84309.43449 | F41: 74102.2396 | G41: 69471.85778 | H41: 64927.78211 | I41: 60807.36331 | J41: 57007.73038 | K41: 53445.52282 | L41: 41159.08595
A42: 0.3498630027 | B42: 658879.7354 | C42: =C$4/((1+$A63)^(C$3/252)) -> 95576.94426 | D42: 88882.19331 | E42: 82263.71045 | F42: 70973.70748 | G42: 65923.77846 | H42: 61014.86048 | I42: 56606.0954 | J42: 52578.45229 | K42: 48837.38448 | L42: 36222.60878
A43: 0.3998630027 | B43: 629511.1973 | C43: =C$4/((1+$A64)^(C$3/252)) -> 95054.18198 | D43: 87621.21154 | E43: 80339.37724 | F43: 68084.00613 | G43: 62676.31041 | H43: 57467.54305 | I43: 52832.51024 | J43: 48636.19225 | K43: 44773.17443 | L43: 32026.68999
A44: 0.4498630027 | B44: 602996.2268 | C44: =C$4/((1+$A65)^(C$3/252)) -> 94552.47852 | D44: 86421.44993 | E44: 78525.26916 | F44: 65407.31516 | G44: 59694.56159 | H44: 54240.37111 | I44: 49430.03413 | J44: 45112.7555 | K44: 41172.55318 | L44: 28439.43852
A45: 0.4998630027 | B45: 578952.5894 | C45: =C$4/((1+$A66)^(C$3/252)) -> 94070.30186 | D45: 85277.97407 | E45: 76811.58758 | F45: 62921.37145 | G45: 56948.71111 | H45: 51294.85026 | I45: 46351.18784 | J45: 41951.41245 | K45: 37969.2752 | L45: 25355.9176
B47: VPL - R$
A48: Variações em i | B48: Full Valuation | C48: Modify Duration | D48: Convexity | M48: Convexidade | N48: Duration
A49: =$B$7+(ROW()%-57%)*$B$21*100 -> -0.3501369973 | B49: =SUM(C28:L28) -> 2094921.213 | C49: =$B$57-$B$57*$B$11*(A49-$B$7) -> 1452571.124 | D49: =$B$8+$B$8*(-$B$11*(A49-$B$7)+$B$17*0.5*((A49-$B$7)^2)) -> 1666512.568 | M49: =D49-B49 -> -428408.6453 | N49: =C49-B49 -> -642350.0899
A50: =$B$7+(ROW()%-57%)*$B$21*100 -> -0.3001369973 | B50: 1822071.504 | C50: =$B$57-$B$57*$B$11*(A50-$B$7) -> 1387216.566 | D50: =$B$8+$B$8*(-$B$11*(A50-$B$7)+$B$17*0.5*((A50-$B$7)^2)) -> 1551015.484 | M50: -271056.0194 | N50: =C50-B50 -> -434854.938
A51: -0.2501369973 | B51: 1607588.471 | C51: 1321862.008 | D51: 1442204.07 | M51: -165384.4009 | N51: -285726.4635
A52: -0.2001369973 | B52: 1435676.145 | C52: 1256507.45 | D52: 1340078.327 | M52: -95597.81896 | N52: -179168.6958
A53: -0.1501369973 | B53: 1295548.017 | C53: 1191152.892 | D53: 1244638.253 | M53: -50909.76453 | N53: -104395.1257
A54: -0.1001369973 | B54: 1179639.331 | C54: 1125798.334 | D54: 1155883.849 | M54: -23755.48143 | N54: -53840.99708
A55: -0.05013699728 | B55: 1082519.362 | C55: 1060443.776 | D55: 1073815.116 | M55: -8704.245599 | N55: -22075.58589
A56: -0.0001369972754 | B56: 1000208.095 | C56: 995089.2179 | D56: 998432.0529 | M56: -1776.042286 | N56: -5118.877358
A57: =$B$7+(ROW()%-57%)*$B$21*100 -> 0.04986300272 | B57: 929734.6599 | C57: =$B$57-$B$57*$B$11*(A57-$B$7) -> 929734.6599 | D57: 929734.6599 | M57: 0 | N57: 0
A58: 0.09986300272 | B58: 868844.7304 | C58: 864380.1019 | D58: 867722.937 | M58: =D58-B58 -> -1121.793409 | N58: -4464.628481
A59: 0.1498630027 | B59: 815802.2357 | C59: 799025.544 | D59: 812396.8843 | M59: -3405.351463 | N59: -16776.69175
A60: 0.1998630027 | B60: 769252.231 | C60: 733670.986 | D60: 763756.5017 | M60: -5495.729301 | N60: -35581.24495
A61: 0.2498630027 | B61: 728124.3149 | C61: 668316.4281 | D61: 721801.7892 | M61: -6322.525681 | N61: -59807.88684
A62: 0.2998630027 | B62: 691563.4629 | C62: 602961.8701 | D62: 686532.7469 | M62: -5030.716024 | N62: -88601.59283
A63: 0.3498630027 | B63: 658879.7354 | C63: 537607.3121 | D63: 657949.3747 | M63: -930.3606362 | N63: -121272.4232
A64: 0.3998630027 | B64: 629511.1973 | C64: 472252.7542 | D64: 636051.6727 | M64: 6540.475455 | N64: -157258.4431
A65: 0.4498630027 | B65: 602996.2268 | C65: 406898.1962 | D65: 620839.6409 | M65: 17843.41406 | N65: -196098.0306
A66: 0.4998630027 | B66: 578952.5894 | C66: 341543.6383 | D66: 612313.2791 | M66: =D66-B66 -> 33360.6897 | N66: -237408.9512
A68: =A21&B21*100&"%" -> DIV01 - Duration para 5% | B68: =B58-B57 -> -60889.92948 | C68: =C58-C57 -> -65354.55796 | D68: =D58-D57 -> -62011.72289

Sheet FERIADOS
A1: 2009-01-01 | B1: 2009-02-23 | C1: 2009-02-24 | D1: 2009-04-10 | E1: 2009-04-21 | F1: 2009-05-01 | G1: 2009-06-11 | H1: 2009-09-07 | I1: 2009-10-12 | J1: 2009-11-02 | K1: 2009-11-15 | L1: 2009-12-25
A2: 2010-01-01 | B2: 2010-02-15 | C2: 2010-02-16 | D2: 2010-04-02 | E2: 2010-04-21 | F2: 2010-05-01 | G2: 2010-06-03 | H2: 2010-09-07 | I2: 2010-10-12 | J2: 2010-11-02 | K2: 2010-11-15 | L2: 2010-12-25
A3: 2011-01-01 | B3: 2011-03-07 | C3: 2011-03-08 | D3: 2011-04-21 | E3: 2011-04-22 | F3: 2011-05-01 | G3: 2011-06-23 | H3: 2011-09-07 | I3: 2011-10-12 | J3: 2011-11-02 | K3: 2011-11-15 | L3: 2011-12-25
A4: 2012-01-01 | B4: 2012-02-20 | C4: 2012-02-21 | D4: 2012-04-06 | E4: 2012-04-21 | F4: 2012-05-01 | G4: 2012-06-07 | H4: 2012-09-07 | I4: 2012-10-12 | J4: 2012-11-02 | K4: 2012-11-15 | L4: 2012-12-25
A5: 2013-01-01 | B5: 2013-02-11 | C5: 2013-02-12 | D5: 2013-03-29 | E5: 2013-04-21 | F5: 2013-05-01 | G5: 2013-05-30 | H5: 2013-09-07 | I5: 2013-10-12 | J5: 2013-11-02 | K5: 2013-11-15 | L5: 2013-12-25
A6: 2014-01-01 | B6: 2014-03-03 | C6: 2014-03-04 | D6: 2014-04-18 | E6: 2014-04-21 | F6: 2014-05-01 | G6: 2014-06-19 | H6: 2014-09-07 | I6: 2014-10-12 | J6: 2014-11-02 | K6: 2014-11-15 | L6: 2014-12-25
A7: 2015-01-01 | B7: 2015-02-16 | C7: 2015-02-17 | D7: 2015-04-03 | E7: 2015-04-21 | F7: 2015-05-01 | G7: 2015-06-04 | H7: 2015-09-07 | I7: 2015-10-12 | J7: 2015-11-02 | K7: 2015-11-15 | L7: 2015-12-25
A8: 2016-01-01 | B8: 2016-02-08 | C8: 2016-02-09 | D8: 2016-03-25 | E8: 2016-04-21 | F8: 2016-05-01 | G8: 2016-05-26 | H8: 2016-09-07 | I8: 2016-10-12 | J8: 2016-11-02 | K8: 2016-11-15 | L8: 2016-12-25
A9: 2017-01-01 | B9: 2017-02-27 | C9: 2017-02-28 | D9: 2017-04-14 | E9: 2017-04-21 | F9: 2017-05-01 | G9: 2017-06-15 | H9: 2017-09-07 | I9: 2017-10-12 | J9: 2017-11-02 | K9: 2017-11-15 | L9: 2017-12-25
A10: 2018-01-01 | B10: 2018-02-12 | C10: 2018-02-13 | D10: 2018-03-30 | E10: 2018-04-21 | F10: 2018-05-01 | G10: 2018-05-31 | H10: 2018-09-07 | I10: 2018-10-12 | J10: 2018-11-02 | K10: 2018-11-15 | L10: 2018-12-25
A11: 2019-01-01 | B11: 2019-03-04 | C11: 2019-03-05 | D11: 2019-04-19 | E11: 2019-04-21 | F11: 2019-05-01 | G11: 2019-06-20 | H11: 2019-09-07 | I11: 2019-10-12 | J11: 2019-11-02 | K11: 2019-11-15 | L11: 2019-12-25
A12: 2020-01-01 | B12: 2020-02-24 | C12: 2020-02-25 | D12: 2020-04-10 | E12: 2020-04-21 | F12: 2020-05-01 | G12: 2020-06-11 | H12: 2020-09-07 | I12: 2020-10-12 | J12: 2020-11-02 | K12: 2020-11-15 | L12: 2020-12-25
A13: 2021-01-01 | B13: 2021-02-15 | C13: 2021-02-16 | D13: 2021-04-02 | E13: 2021-04-21 | F13: 2021-05-01 | G13: 2021-06-03 | H13: 2021-09-07 | I13: 2021-10-12 | J13: 2021-11-02 | K13: 2021-11-15 | L13: 2021-12-25
A14: 2022-01-01 | B14: 2022-02-28 | C14: 2022-03-01 | D14: 2022-04-15 | E14: 2022-04-21 | F14: 2022-05-01 | G14: 2022-06-16 | H14: 2022-09-07 | I14: 2022-10-12 | J14: 2022-11-02 | K14: 2022-11-15 | L14: 2022-12-25
A15: 2023-01-01 | B15: 2023-02-20 | C15: 2023-02-21 | D15: 2023-04-07 | E15: 2023-04-21 | F15: 2023-05-01 | G15: 2023-06-08 | H15: 2023-09-07 | I15: 2023-10-12 | J15: 2023-11-02 | K15: 2023-11-15 | L15: 2023-12-25
A16: 2024-01-01 | B16: 2024-02-12 | C16: 2024-02-13 | D16: 2024-03-29 | E16: 2024-04-21 | F16: 2024-05-01 | G16: 2024-05-30 | H16: 2024-09-07 | I16: 2024-10-12 | J16: 2024-11-02 | K16: 2024-11-15 | L16: 2024-12-25
A17: 2025-01-01 | B17: 2025-03-03 | C17: 2025-03-04 | D17: 2025-04-18 | E17: 2025-04-21 | F17: 2025-05-01 | G17: 2025-06-19 | H17: 2025-09-07 | I17: 2025-10-12 | J17: 2025-11-02 | K17: 2025-11-15 | L17: 2025-12-25
A18: 2026-01-01 | B18: 2026-02-16 | C18: 2026-02-17 | D18: 2026-04-03 | E18: 2026-04-21 | F18: 2026-05-01 | G18: 2026-06-04 | H18: 2026-09-07 | I18: 2026-10-12 | J18: 2026-11-02 | K18: 2026-11-15 | L18: 2026-12-25
A19: 2027-01-01 | B19: 2027-02-08 | C19: 2027-02-09 | D19: 2027-03-26 | E19: 2027-04-21 | F19: 2027-05-01 | G19: 2027-05-27 | H19: 2027-09-07 | I19: 2027-10-12 | J19: 2027-11-02 | K19: 2027-11-15 | L19: 2027-12-25
A20: 2028-01-01 | B20: 2028-02-28 | C20: 2028-02-29 | D20: 2028-04-14 | E20: 2028-04-21 | F20: 2028-05-01 | G20: 2028-06-15 | H20: 2028-09-07 | I20: 2028-10-12 | J20: 2028-11-02 | K20: 2028-11-15 | L20: 2028-12-25
A21: 2029-01-01 | B21: 2029-02-12 | C21: 2029-02-13 | D21: 2029-03-30 | E21: 2029-04-21 | F21: 2029-05-01 | G21: 2029-05-31 | H21: 2029-09-07 | I21: 2029-10-12 | J21: 2029-11-02 | K21: 2029-11-15 | L21: 2029-12-25
A22: 2030-01-01 | B22: 2030-03-04 | C22: 2030-03-05 | D22: 2030-04-19 | E22: 2030-04-21 | F22: 2030-05-01 | G22: 2030-06-20 | H22: 2030-09-07 | I22: 2030-10-12 | J22: 2030-11-02 | K22: 2030-11-15 | L22: 2030-12-25
A23: 2031-01-01 | B23: 2031-02-24 | C23: 2031-02-25 | D23: 2031-04-11 | E23: 2031-04-21 | F23: 2031-05-01 | G23: 2031-06-12 | H23: 2031-09-07 | I23: 2031-10-12 | J23: 2031-11-02 | K23: 2031-11-15 | L23: 2031-12-25
A24: 2032-01-01 | B24: 2032-02-09 | C24: 2032-02-10 | D24: 2032-03-26 | E24: 2032-04-21 | F24: 2032-05-01 | G24: 2032-05-27 | H24: 2032-09-07 | I24: 2032-10-12 | J24: 2032-11-02 | K24: 2032-11-15 | L24: 2032-12-25
A25: 2033-01-01 | B25: 2033-02-28 | C25: 2033-03-01 | D25: 2033-04-15 | E25: 2033-04-21 | F25: 2033-05-01 | G25: 2033-06-16 | H25: 2033-09-07 | I25: 2033-10-12 | J25: 2033-11-02 | K25: 2033-11-15 | L25: 2033-12-25
A26: 2034-01-01 | B26: 2034-02-20 | C26: 2034-02-21 | D26: 2034-04-07 | E26: 2034-04-21 | F26: 2034-05-01 | G26: 2034-06-08 | H26: 2034-09-07 | I26: 2034-10-12 | J26: 2034-11-02 | K26: 2034-11-15 | L26: 2034-12-25
A27: 2035-01-01 | B27: 2035-02-05 | C27: 2035-02-06 | D27: 2035-03-23 | E27: 2035-04-21 | F27: 2035-05-01 | G27: 2035-05-24 | H27: 2035-09-07 | I27: 2035-10-12 | J27: 2035-11-02 | K27: 2035-11-15 | L27: 2035-12-25
A28: 2036-01-01 | B28: 2036-02-25 | C28: 2036-02-26 | D28: 2036-04-11 | E28: 2036-04-21 | F28: 2036-05-01 | G28: 2036-06-12 | H28: 2036-09-07 | I28: 2036-10-12 | J28: 2036-11-02 | K28: 2036-11-15 | L28: 2036-12-25
A29: 2037-01-01 | B29: 2037-02-16 | C29: 2037-02-17 | D29: 2037-04-03 | E29: 2037-04-21 | F29: 2037-05-01 | G29: 2037-06-04 | H29: 2037-09-07 | I29: 2037-10-12 | J29: 2037-11-02 | K29: 2037-11-15 | L29: 2037-12-25
A30: 2038-01-01 | B30: 2038-03-08 | C30: 2038-03-09 | D30: 2038-04-21 | E30: 2038-04-23 | F30: 2038-05-01 | G30: 2038-06-24 | H30: 2038-09-07 | I30: 2038-10-12 | J30: 2038-11-02 | K30: 2038-11-15 | L30: 2038-12-25
A31: 2039-01-01 | B31: 2039-02-21 | C31: 2039-02-22 | D31: 2039-04-08 | E31: 2039-04-21 | F31: 2039-05-01 | G31: 2039-06-09 | H31: 2039-09-07 | I31: 2039-10-12 | J31: 2039-11-02 | K31: 2039-11-15 | L31: 2039-12-25
A32: 2040-01-01 | B32: 2040-02-13 | C32: 2040-02-14 | D32: 2040-03-30 | E32: 2040-04-21 | F32: 2040-05-01 | G32: 2040-05-31 | H32: 2040-09-07 | I32: 2040-10-12 | J32: 2040-11-02 | K32: 2040-11-15 | L32: 2040-12-25
A33: 2041-01-01 | B33: 2041-03-04 | C33: 2041-03-05 | D33: 2041-04-19 | E33: 2041-04-21 | F33: 2041-05-01 | G33: 2041-06-20 | H33: 2041-09-07 | I33: 2041-10-12 | J33: 2041-11-02 | K33: 2041-11-15 | L33: 2041-12-25
A34: 2042-01-01 | B34: 2042-02-17 | C34: 2042-02-18 | D34: 2042-04-04 | E34: 2042-04-21 | F34: 2042-05-01 | G34: 2042-06-05 | H34: 2042-09-07 | I34: 2042-10-12 | J34: 2042-11-02 | K34: 2042-11-15 | L34: 2042-12-25
A35: 2043-01-01 | B35: 2043-02-09 | C35: 2043-02-10 | D35: 2043-03-27 | E35: 2043-04-21 | F35: 2043-05-01 | G35: 2043-05-28 | H35: 2043-09-07 | I35: 2043-10-12 | J35: 2043-11-02 | K35: 2043-11-15 | L35: 2043-12-25
A36: 2044-01-01 | B36: 2044-02-29 | C36: 2044-03-01 | D36: 2044-04-15 | E36: 2044-04-21 | F36: 2044-05-01 | G36: 2044-06-16 | H36: 2044-09-07 | I36: 2044-10-12 | J36: 2044-11-02 | K36: 2044-11-15 | L36: 2044-12-25
A37: 2045-01-01 | B37: 2045-02-20 | C37: 2045-02-21 | D37: 2045-04-07 | E37: 2045-04-21 | F37: 2045-05-01 | G37: 2045-06-08 | H37: 2045-09-07 | I37: 2045-10-12 | J37: 2045-11-02 | K37: 2045-11-15 | L37: 2045-12-25
A38: 2046-01-01 | B38: 2046-02-05 | C38: 2046-02-06 | D38: 2046-03-23 | E38: 2046-04-21 | F38: 2046-05-01 | G38: 2046-05-24 | H38: 2046-09-07 | I38: 2046-10-12 | J38: 2046-11-02 | K38: 2046-11-15 | L38: 2046-12-25
A39: 2047-01-01 | B39: 2047-02-25 | C39: 2047-02-26 | D39: 2047-04-12 | E39: 2047-04-21 | F39: 2047-05-01 | G39: 2047-06-13 | H39: 2047-09-07 | I39: 2047-10-12 | J39: 2047-11-02 | K39: 2047-11-15 | L39: 2047-12-25
A40: 2048-01-01 | B40: 2048-02-17 | C40: 2048-02-18 | D40: 2048-04-03 | E40: 2048-04-21 | F40: 2048-05-01 | G40: 2048-06-04 | H40: 2048-09-07 | I40: 2048-10-12 | J40: 2048-11-02 | K40: 2048-11-15 | L40: 2048-12-25
A41: 2049-01-01 | B41: 2049-03-01 | C41: 2049-03-02 | D41: 2049-04-16 | E41: 2049-04-21 | F41: 2049-05-01 | G41: 2049-06-17 | H41: 2049-09-07 | I41: 2049-10-12 | J41: 2049-11-02 | K41: 2049-11-15 | L41: 2049-12-25
A42: 2050-01-01 | B42: 2050-02-21 | C42: 2050-02-22 | D42: 2050-04-08 | E42: 2050-04-21 | F42: 2050-05-01 | G42: 2050-06-09 | H42: 2050-09-07 | I42: 2050-10-12 | J42: 2050-11-02 | K42: 2050-11-15 | L42: 2050-12-25
A43: 2051-01-01 | B43: 2051-02-13 | C43: 2051-02-14 | D43: 2051-03-31 | E43: 2051-04-21 | F43: 2051-05-01 | G43: 2051-06-01 | H43: 2051-09-07 | I43: 2051-10-12 | J43: 2051-11-02 | K43: 2051-11-15 | L43: 2051-12-25
A44: 2052-01-01 | B44: 2052-03-04 | C44: 2052-03-05 | D44: 2052-04-19 | E44: 2052-04-21 | F44: 2052-05-01 | G44: 2052-06-20 | H44: 2052-09-07 | I44: 2052-10-12 | J44: 2052-11-02 | K44: 2052-11-15 | L44: 2052-12-25
A45: 2053-01-01 | B45: 2053-02-17 | C45: 2053-02-18 | D45: 2053-04-04 | E45: 2053-04-21 | F45: 2053-05-01 | G45: 2053-06-05 | H45: 2053-09-07 | I45: 2053-10-12 | J45: 2053-11-02 | K45: 2053-11-15 | L45: 2053-12-25
A46: 2054-01-01 | B46: 2054-02-09 | C46: 2054-02-10 | D46: 2054-03-27 | E46: 2054-04-21 | F46: 2054-05-01 | G46: 2054-05-28 | H46: 2054-09-07 | I46: 2054-10-12 | J46: 2054-11-02 | K46: 2054-11-15 | L46: 2054-12-25
A47: 2055-01-01 | B47: 2055-03-01 | C47: 2055-03-02 | D47: 2055-04-16 | E47: 2055-04-21 | F47: 2055-05-01 | G47: 2055-06-17 | H47: 2055-09-07 | I47: 2055-10-12 | J47: 2055-11-02 | K47: 2055-11-15 | L47: 2055-12-25
A48: 2056-01-01 | B48: 2056-02-14 | C48: 2056-02-15 | D48: 2056-03-31 | E48: 2056-04-21 | F48: 2056-05-01 | G48: 2056-06-01 | H48: 2056-09-07 | I48: 2056-10-12 | J48: 2056-11-02 | K48: 2056-11-15 | L48: 2056-12-25
A49: 2057-01-01 | B49: 2057-03-05 | C49: 2057-03-06 | D49: 2057-04-20 | E49: 2057-04-21 | F49: 2057-05-01 | G49: 2057-06-21 | H49: 2057-09-07 | I49: 2057-10-12 | J49: 2057-11-02 | K49: 2057-11-15 | L49: 2057-12-25
A50: 2058-01-01 | B50: 2058-02-25 | C50: 2058-02-26 | D50: 2058-04-12 | E50: 2058-04-21 | F50: 2058-05-01 | G50: 2058-06-13 | H50: 2058-09-07 | I50: 2058-10-12 | J50: 2058-11-02 | K50: 2058-11-15 | L50: 2058-12-25
A51: 2059-01-01 | B51: 2059-02-10 | C51: 2059-02-11 | D51: 2059-03-28 | E51: 2059-04-21 | F51: 2059-05-01 | G51: 2059-05-29 | H51: 2059-09-07 | I51: 2059-10-12 | J51: 2059-11-02 | K51: 2059-11-15 | L51: 2059-12-25
A52: 2060-01-01 | B52: 2060-03-01 | C52: 2060-03-02 | D52: 2060-04-16 | E52: 2060-04-21 | F52: 2060-05-01 | G52: 2060-06-17 | H52: 2060-09-07 | I52: 2060-10-12 | J52: 2060-11-02 | K52: 2060-11-15 | L52: 2060-12-25
A53: 2061-01-01 | B53: 2061-02-21 | C53: 2061-02-22 | D53: 2061-04-08 | E53: 2061-04-21 | F53: 2061-05-01 | G53: 2061-06-09 | H53: 2061-09-07 | I53: 2061-10-12 | J53: 2061-11-02 | K53: 2061-11-15 | L53: 2061-12-25
A54: 2062-01-01 | B54: 2062-02-06 | C54: 2062-02-07 | D54: 2062-03-24 | E54: 2062-04-21 | F54: 2062-05-01 | G54: 2062-05-25 | H54: 2062-09-07 | I54: 2062-10-12 | J54: 2062-11-02 | K54: 2062-11-15 | L54: 2062-12-25
A55: 2063-01-01 | B55: 2063-02-26 | C55: 2063-02-27 | D55: 2063-04-13 | E55: 2063-04-21 | F55: 2063-05-01 | G55: 2063-06-14 | H55: 2063-09-07 | I55: 2063-10-12 | J55: 2063-11-02 | K55: 2063-11-15 | L55: 2063-12-25
A56: 2064-01-01 | B56: 2064-02-18 | C56: 2064-02-19 | D56: 2064-04-04 | E56: 2064-04-21 | F56: 2064-05-01 | G56: 2064-06-05 | H56: 2064-09-07 | I56: 2064-10-12 | J56: 2064-11-02 | K56: 2064-11-15 | L56: 2064-12-25
A57: 2065-01-01 | B57: 2065-02-09 | C57: 2065-02-10 | D57: 2065-03-27 | E57: 2065-04-21 | F57: 2065-05-01 | G57: 2065-05-28 | H57: 2065-09-07 | I57: 2065-10-12 | J57: 2065-11-02 | K57: 2065-11-15 | L57: 2065-12-25
A58: 2066-01-01 | B58: 2066-02-22 | C58: 2066-02-23 | D58: 2066-04-09 | E58: 2066-04-21 | F58: 2066-05-01 | G58: 2066-06-10 | H58: 2066-09-07 | I58: 2066-10-12 | J58: 2066-11-02 | K58: 2066-11-15 | L58: 2066-12-25
A59: 2067-01-01 | B59: 2067-02-14 | C59: 2067-02-15 | D59: 2067-04-01 | E59: 2067-04-21 | F59: 2067-05-01 | G59: 2067-06-02 | H59: 2067-09-07 | I59: 2067-10-12 | J59: 2067-11-02 | K59: 2067-11-15 | L59: 2067-12-25
A60: 2068-01-01 | B60: 2068-03-05 | C60: 2068-03-06 | D60: 2068-04-20 | E60: 2068-04-21 | F60: 2068-05-01 | G60: 2068-06-21 | H60: 2068-09-07 | I60: 2068-10-12 | J60: 2068-11-02 | K60: 2068-11-15 | L60: 2068-12-25
A61: 2069-01-01 | B61: 2069-02-25 | C61: 2069-02-26 | D61: 2069-04-12 | E61: 2069-04-21 | F61: 2069-05-01 | G61: 2069-06-13 | H61: 2069-09-07 | I61: 2069-10-12 | J61: 2069-11-02 | K61: 2069-11-15 | L61: 2069-12-25
A62: 2070-01-01 | B62: 2070-02-10 | C62: 2070-02-11 | D62: 2070-03-28 | E62: 2070-04-21 | F62: 2070-05-01 | G62: 2070-05-29 | H62: 2070-09-07 | I62: 2070-10-12 | J62: 2070-11-02 | K62: 2070-11-15 | L62: 2070-12-25
